bitfinex/quotes_BTCUSD_20220226
["timestamp","ask_amount","ask_price","bid_price","bid_amount"]
[1645889683203,0.1,39310.0,39304.0,0.42741897]
[1645889683403,0.1,39310.0,39304.0,0.427077]
[1645889683607,0.1,39310.0,39304.0,0.42741897]
[1645889683802,0.3,39317.0,39308.0,0.0999]
[1645889684001,0.1,39309.0,39308.0,0.0999]
[1645889684201,0.1,39309.0,39308.0,0.377077]
[1645889684603,0.3511,39318.0,39314.0,0.2]
[1645889684808,0.05,39319.0,39314.0,0.2]
[1645889684809,0.06362748,39324.0,39315.0,0.677077]
[1645889685009,0.2397,39331.0,39315.0,0.677077]
[1645889685208,0.4717,39333.0,39326.0,0.21327889]
[1645889685466,0.01016,39338.0,39327.0,0.377077]
[1645889685660,0.4732,39342.0,39328.0,0.3]
[1645889685661,0.01016,39341.0,39328.0,0.3]
[1645889685860,0.01016,39341.0,39329.0,0.377077]
[1645889686061,0.1,39340.0,39331.0,0.00034112]
[1645889686268,0.1,39338.0,39331.0,0.00034112]
[1645889686561,0.06361,39337.0,39331.0,0.00034112]
[1645889686962,0.06361,39337.0,39336.0,0.01]
[1645889687161,0.29242525,39337.0,39336.0,0.01]
[1645889687361,0.34242525,39337.0,39336.0,0.01]
[1645889688361,0.95,39336.0,39335.0,0.00034115]
[1645889688561,0.1,39336.0,39335.0,0.00034115]
[1645889689501,0.17305968,39328.0,39323.0,0.677077]
[1645889689699,0.17305968,39328.0,39323.0,0.377077]
[1645889690099,0.17305968,39328.0,39327.0,0.01]
[1645889690304,0.17305968,39328.0,39327.0,0.387077]
[1645889691603,0.06016,39337.0,39327.0,0.387077]
[1645889691803,0.05,39337.0,39327.0,0.01]
[1645889692002,0.01016,39338.0,39327.0,0.013]
[1645889692208,0.1,39330.0,39327.0,0.013]
[1645889692406,0.018699,39329.0,39327.0,0.013]
[1645889692853,0.1,39328.0,39327.0,0.013]
[1645889693053,0.05,39328.0,39327.0,0.013]
[1645889693252,0.01016,39329.0,39327.0,0.013]
[1645889693456,0.01016,39330.0,39327.0,0.013]
[1645889693652,0.05,39333.0,39327.0,0.013]
[1645889693956,0.1511,39335.0,39327.0,0.011]
[1645889694352,0.21998176,39332.0,39327.0,0.011]
[1645889694554,0.26998176,39332.0,39327.0,0.011]
[1645889695352,0.26998176,39332.0,39327.0,0.01]
[1645889695952,0.05,39335.0,39327.0,0.011]
[1645889696154,0.01016,39339.0,39328.0,0.377077]
[1645889696356,0.01016,39341.0,39329.0,0.3]
[1645889696604,0.01016,39341.0,39330.0,0.377077]
[1645889696802,0.01016,39343.0,39332.0,0.00035349]
[1645889696999,0.1711873,39338.0,39332.0,0.00035349]
[1645889697199,0.1711873,39338.0,39333.0,0.377077]
[1645889697400,0.1711873,39338.0,39332.0,0.00035349]
[1645889697799,0.1711873,39338.0,39329.0,0.22915877]
[1645889698000,0.1711873,39338.0,39333.0,0.00035348]
[1645889698403,0.1,39335.0,39333.0,0.00035348]
[1645889699001,0.1,39335.0,39327.0,0.011]
[1645889699204,0.21639206,39328.0,39327.0,0.01]
[1645889699802,0.1,39335.0,39327.0,0.01]
[1645889700102,0.06016,39337.0,39327.0,0.012]
[1645889700351,0.1,39336.0,39329.0,0.00034005]
[1645889700550,0.05,39336.0,39329.0,0.00034005]
[1645889700750,0.18119003,39330.0,39329.0,0.00034005]
[1645889700953,0.01016,39337.0,39329.0,0.00034005]
[1645889701250,0.1365,39342.0,39329.0,0.00034005]
[1645889701251,0.01016,39341.0,39329.0,0.00034005]
[1645889701453,0.1,39342.0,39330.0,0.377077]
[1645889701650,0.05,39342.0,39331.0,0.00034004]
[1645889701854,0.19589764,39338.0,39331.0,0.00034004]
[1645889702051,0.14589764,39338.0,39331.0,0.00034004]
[1645889702649,0.14589764,39338.0,39327.0,0.01]
[1645889702850,0.14589764,39338.0,39333.0,0.00034093]
[1645889703050,0.21476053,39337.0,39333.0,0.00034093]
[1645889703651,0.14431225,39337.0,39333.0,0.00034093]
[1645889703851,0.14431225,39337.0,39327.0,0.01]
[1645889704101,0.14431225,39337.0,39333.0,0.00034093]
[1645889704999,0.14431225,39337.0,39328.0,0.001]
[1645889705203,0.14431225,39337.0,39333.0,0.00034093]
[1645889705801,0.19431225,39337.0,39333.0,0.00034093]
[1645889706001,0.24431225,39337.0,39333.0,0.00034093]
[1645889706201,0.24431225,39337.0,39327.0,0.01]
[1645889706402,0.23117163,39330.0,39327.0,0.01]
[1645889707602,0.23117163,39330.0,39327.0,0.0103409]
[1645889708650,0.23117163,39330.0,39327.0,0.01]
[1645889708849,0.23117163,39330.0,39327.0,0.0103409]
[1645889709855,0.23117163,39330.0,39327.0,0.01]
[1645889710050,0.23117163,39330.0,39327.0,0.01034091]
[1645889711052,0.33117163,39330.0,39327.0,0.01]
[1645889711252,0.43117163,39330.0,39327.0,0.01034091]
[1645889711705,0.377077,39329.0,39327.0,0.01034091]
[1645889711905,0.477077,39328.0,39327.0,0.01034091]
[1645889712110,0.537237,39328.0,39327.0,0.01034091]
[1645889712305,0.537237,39328.0,39327.0,0.01]
[1645889713005,0.437237,39328.0,39327.0,0.01]
[1645889713205,0.437237,39328.0,39327.0,0.0001]
[1645889713407,0.437237,39328.0,39317.0,0.04010092]
[1645889713607,0.387237,39327.0,39326.0,0.00034091]
[1645889714010,2.74704659,39327.0,39326.0,9.1e-07]
[1645889714216,0.082347,39318.0,39317.0,0.002]
[1645889714409,1.72748139,39318.0,39317.0,0.002]
[1645889714611,0.727077,39315.0,39304.0,0.23218829]
[1645889714810,0.377077,39311.0,39304.0,0.04]
[1645889715210,0.3,39312.0,39311.0,0.57338186]
[1645889715460,0.0511,39314.0,39311.0,0.57338186]
[1645889715659,0.377077,39313.0,39311.0,0.57338186]
[1645889715857,0.428177,39312.0,39311.0,0.57338186]
[1645889716059,0.428177,39312.0,39311.0,0.57458804]
[1645889717058,0.428177,39312.0,39311.0,0.57438186]
[1645889717458,0.428177,39312.0,39311.0,0.57338186]
[1645889718059,0.430177,39312.0,39311.0,0.57338186]
[1645889718461,0.0531,39312.0,39311.0,0.57338186]
[1645889718662,0.002,39312.0,39311.0,0.95045886]
[1645889718864,0.002,39312.0,39311.0,0.57338186]
[1645889719312,6e-05,39322.0,39311.0,0.57338186]
[1645889719714,0.377077,39321.0,39315.0,0.23548897]
[1645889720012,0.018699,39321.0,39311.0,0.57338186]
[1645889720511,0.3,39321.0,39311.0,0.57338186]
[1645889720713,0.35,39321.0,39311.0,0.57338186]
[1645889720915,0.35,39321.0,39314.0,0.20737271]
[1645889721715,0.34965868,39321.0,39314.0,0.20737271]
[1645889721916,0.34965868,39321.0,39314.0,0.2070459]
[1645889722117,0.05065868,39321.0,39316.0,0.0003268]
[1645889722316,0.001,39321.0,39316.0,0.0003268]
[1645889722519,0.377077,39320.0,39316.0,0.0003268]
[1645889723145,0.05,39319.0,39311.0,0.57338186]
[1645889723347,0.377077,39318.0,39316.0,0.00031764]
[1645889723552,0.55,39317.0,39316.0,0.00031764]
[1645889723747,0.679959,39317.0,39316.0,0.00031764]
[1645889724346,0.2,39314.0,39311.0,0.57338186]
[1645889724546,0.6682426,39313.0,39311.0,0.57338186]
[1645889724745,0.7682426,39313.0,39311.0,0.57338186]
[1645889725350,0.540731,39313.0,39311.0,0.57338186]
[1645889725748,0.604385,39313.0,39311.0,0.57338186]
[1645889726148,1.477935,39313.0,39311.0,0.57338186]
[1645889726349,0.069799,39312.0,39311.0,0.36133186]
[1645889727199,0.2905995,39312.0,39311.0,0.36133186]
[1645889728103,0.4280995,39312.0,39311.0,0.36133186]
[1645889728300,0.6780995,39312.0,39311.0,0.36133186]
[1645889728500,0.7280995,39312.0,39311.0,0.36133186]
[1645889729102,0.4780995,39312.0,39311.0,0.36133186]
[1645889729302,0.4770995,39312.0,39311.0,0.35777932]
[1645889729802,0.3405995,39312.0,39311.0,0.35777932]
[1645889730002,0.4770995,39312.0,39311.0,0.35777932]
[1645889730347,0.3405995,39312.0,39311.0,0.35777932]
[1645889734207,0.7770995,39312.0,39311.0,0.35777932]
[1645889738254,0.4770995,39312.0,39311.0,0.35777932]
[1645889738450,0.7770995,39312.0,39311.0,0.35777932]
[1645889740350,0.6,39311.0,39307.0,0.03436899]
[1645889740554,0.06365104,39310.0,39307.0,0.03436899]
[1645889740751,0.11365104,39310.0,39307.0,0.03436899]
[1645889740951,0.377077,39309.0,39307.0,0.03436899]
[1645889741353,0.440734,39309.0,39307.0,0.03436899]
[1645889742311,0.377077,39308.0,39307.0,0.03436899]
[1645889742710,0.113657,39309.0,39307.0,0.03436899]
[1645889743111,0.377077,39308.0,39307.0,0.03436899]
[1645889744411,0.378077,39308.0,39307.0,0.03436899]
[1645889745650,0.05,39309.0,39307.0,0.03436899]
[1645889745851,0.377077,39308.0,39307.0,0.03436899]
[1645889746151,0.427077,39308.0,39306.0,0.00036269]
[1645889746354,0.05,39308.0,39306.0,0.00036269]
[1645889746551,0.063654,39309.0,39306.0,0.00036269]
[1645889746552,0.377077,39307.0,39306.0,0.00036269]
[1645889746751,0.05,39307.0,39306.0,0.00036269]
[1645889746952,0.427077,39307.0,39306.0,0.00036269]
[1645889747151,0.427077,39307.0,39304.0,0.09]
[1645889747352,0.427077,39307.0,39305.0,0.0003627]
[1645889747353,0.20314871,39306.0,39305.0,0.0003627]
[1645889747753,0.06750645,39306.0,39305.0,0.0003627]
[1645889748354,0.018699,39305.0,39304.0,0.09]
[1645889748554,0.21939629,39308.0,39304.0,0.09036271]
[1645889749597,0.21939629,39308.0,39304.0,0.09]
[1645889749814,0.086157,39307.0,39304.0,0.0903627]
[1645889750197,0.21939629,39308.0,39304.0,0.0903627]
[1645889750398,0.21939629,39308.0,39304.0,0.0913627]
[1645889750798,0.21939629,39308.0,39304.0,0.091]
[1645889750996,0.21939629,39308.0,39304.0,0.0913627]
[1645889751197,0.086157,39307.0,39304.0,0.0913627]
[1645889751603,0.21939629,39308.0,39304.0,0.0913627]
[1645889751798,0.21939629,39308.0,39304.0,0.0903627]
[1645889752000,0.21939629,39308.0,39304.0,0.09]
[1645889752198,0.21939629,39308.0,39304.0,0.0903627]
[1645889752400,0.21939629,39308.0,39304.0,0.0913627]
[1645889752853,0.05,39310.0,39304.0,0.0913627]
[1645889753058,0.05,39310.0,39304.0,0.091]
[1645889753253,0.05,39310.0,39304.0,0.0913627]
[1645889753654,0.05,39310.0,39304.0,0.0903627]
[1645889754259,0.015,39314.0,39308.0,0.2020403]
[1645889754757,0.01,39314.0,39308.0,0.2020403]
[1645889755656,0.01,39314.0,39308.0,0.20240299]
[1645889756455,0.01,39314.0,39308.0,0.20340299]
[1645889756705,0.5333667,39318.0,39308.0,0.2030403]
[1645889756908,0.5333667,39318.0,39308.0,0.20340299]
[1645889757105,0.5833667,39318.0,39312.0,0.05]
[1645889757506,0.086157,39317.0,39312.0,0.05]
[1645889757708,0.90531647,39318.0,39312.0,0.05]
[1645889757709,0.3,39316.0,39312.0,0.05]
[1645889757909,0.086157,39315.0,39312.0,0.05]
[1645889758108,0.3,39316.0,39312.0,0.05]
[1645889759310,0.086157,39315.0,39312.0,0.05]
[1645889759511,0.3,39316.0,39312.0,0.05]
[1645889759909,0.086157,39315.0,39312.0,0.05]
[1645889760953,0.136157,39315.0,39312.0,0.05]
[1645889761153,0.45810677,39315.0,39312.0,0.04368365]
[1645889761353,0.063646,39314.0,39308.0,0.00036269]
[1645889761554,0.4498036,39313.0,39304.0,0.04]
[1645889761752,0.3636466,39313.0,39308.0,0.00036269]
[1645889761952,0.0636466,39313.0,39308.0,0.00036269]
[1645889762352,0.086157,39312.0,39308.0,0.00036269]
[1645889762552,0.0646466,39313.0,39308.0,0.00036269]
[1645889762754,0.0646466,39313.0,39306.0,0.17129962]
[1645889762955,0.0646466,39313.0,39308.0,0.00036268]
[1645889763354,0.1282946,39313.0,39308.0,0.00036268]
[1645889763554,0.086157,39312.0,39308.0,0.00036268]
[1645889763955,0.086157,39311.0,39306.0,0.17129962]
[1645889764194,0.4272946,39313.0,39306.0,0.17129962]
[1645889764195,0.086157,39312.0,39308.0,0.00036268]
[1645889764594,0.2833278,39312.0,39308.0,0.00036268]
[1645889765196,0.086157,39311.0,39306.0,0.17229962]
[1645889765398,0.56912057,39312.0,39308.0,0.00036268]
[1645889766399,0.086157,39311.0,39304.0,0.04]
[1645889766601,0.38561277,39310.0,39304.0,0.04]
[1645889766800,0.32194977,39307.0,39304.0,0.04]
[1645889766999,0.086157,39306.0,39304.0,0.04]
[1645889767404,0.086157,39306.0,39295.0,0.05]
[1645889767405,0.20773106,39299.0,39295.0,0.05]
[1645889767604,0.27542106,39299.0,39295.0,0.045]
[1645889767870,0.27542106,39299.0,39293.0,0.01016]
[1645889768473,0.27642106,39299.0,39293.0,0.01016]
[1645889768870,0.27642106,39299.0,39294.0,0.00036223]
[1645889769671,0.27542106,39299.0,39294.0,0.00036223]
[1645889769872,0.27542106,39299.0,39293.0,0.01016]
[1645889770075,0.27542106,39299.0,39295.0,0.00036223]
[1645889770672,0.06769,39299.0,39295.0,0.00036223]
[1645889770873,0.69598591,39303.0,39295.0,0.00036223]
[1645889771075,0.64598591,39303.0,39293.0,0.01016]
[1645889771276,0.26865376,39302.0,39295.0,0.00036222]
[1645889771473,0.65614591,39303.0,39295.0,0.00036222]
[1645889771710,0.22604203,39302.0,39295.0,0.00036222]
[1645889772406,0.22604203,39302.0,39293.0,0.01016]
[1645889772611,0.22704203,39302.0,39297.0,0.00036222]
[1645889773005,0.001,39302.0,39297.0,0.17369576]
[1645889773605,0.001,39302.0,39297.0,0.17333354]
[1645889773809,0.31865376,39304.0,39298.0,0.00036221]
[1645889774005,0.05,39304.0,39298.0,0.00036221]
[1645889774206,0.26865376,39304.0,39298.0,0.00036221]
[1645889774607,0.26965376,39304.0,39298.0,0.00036221]
[1645889774808,0.26965376,39304.0,39293.0,0.01116]
[1645889774809,0.17336842,39303.0,39295.0,0.19703766]
[1645889775111,0.17336842,39303.0,39299.0,0.0003622]
[1645889775952,0.17336842,39303.0,39295.0,0.19703766]
[1645889776153,0.001,39304.0,39299.0,0.0003622]
[1645889777153,0.001,39304.0,39296.0,0.2336238]
[1645889777154,0.001,39304.0,39296.0,0.2080938]
[1645889777354,0.001,39304.0,39300.0,0.0003622]
[1645889777756,0.33230941,39307.0,39304.0,0.00143857]
[1645889777953,0.39596641,39307.0,39304.0,0.00143857]
[1645889778554,0.39796641,39307.0,39304.0,0.00180075]
[1645889778955,0.33430941,39307.0,39304.0,0.00180075]
[1645889779210,0.33430941,39307.0,39305.0,0.377391]
[1645889779211,0.27065376,39307.0,39305.0,0.377391]
[1645889779415,0.27065376,39307.0,39304.0,0.00180075]
[1645889779416,0.002,39307.0,39306.0,0.76256012]
[1645889779611,0.002,39307.0,39306.0,0.454021]
[1645889779809,0.01,39312.0,39306.0,0.554021]
[1645889780009,0.01,39312.0,39311.0,0.5483139]
[1645889780711,0.01,39312.0,39311.0,0.5493139]
[1645889781110,0.01,39312.0,39311.0,0.6004139]
[1645889781410,0.01,39312.0,39311.0,0.6259439]
[1645889781809,0.01,39312.0,39311.0,0.6249439]
[1645889784150,0.01,39312.0,39311.0,0.62501169]
[1645889785351,0.01,39312.0,39311.0,0.59948169]
[1645889785751,0.01,39312.0,39311.0,0.54838169]
[1645889785952,0.01,39312.0,39311.0,0.59948169]
[1645889786353,0.01,39312.0,39311.0,0.63517169]
[1645889786609,6e-05,39322.0,39311.0,0.63717169]
[1645889786812,0.2147472,39322.0,39317.0,0.61345886]
[1645889787012,6e-05,39322.0,39317.0,0.61345886]
[1645889787411,6e-05,39322.0,39319.0,0.1]
[1645889787613,6e-05,39322.0,39320.0,0.428491]
[1645889791553,0.2146872,39327.0,39325.0,0.19491083]
[1645889791752,0.27865376,39329.0,39320.0,0.0521]
[1645889791753,0.2146872,39328.0,39320.0,0.0521]
[1645889791954,0.2146872,39327.0,39321.0,0.377203]
[1645889792355,0.3,39326.0,39320.0,0.001]
[1645889792556,0.2146872,39325.0,39320.0,0.001]
[1645889792758,0.21235486,39324.0,39320.0,0.001]
[1645889792956,0.2146872,39325.0,39321.0,0.377203]
[1645889793157,0.2146872,39325.0,39318.0,0.377203]
[1645889793361,0.2146872,39326.0,39318.0,0.377203]
[1645889793758,0.2146872,39326.0,39317.0,0.22367617]
[1645889793963,0.2146872,39326.0,39325.0,0.57219267]
[1645889794212,0.01,39329.0,39326.0,0.377203]
[1645889796410,0.01,39329.0,39324.0,0.377203]
[1645889796810,0.01036444,39329.0,39324.0,0.377203]
[1645889797010,0.00036444,39329.0,39324.0,0.377203]
[1645889797610,0.21975198,39329.0,39324.0,0.377203]
[1645889797856,0.22011643,39329.0,39321.0,6.702e-05]
[1645889798055,0.22011643,39329.0,39322.0,0.377203]
[1645889798454,0.22011643,39329.0,39321.0,6.702e-05]
[1645889798660,0.43480363,39329.0,39321.0,6.702e-05]
[1645889798854,0.18646412,39322.0,39321.0,0.37727002]
[1645889799054,0.0172,39325.0,39321.0,0.37727002]
[1645889799255,0.0172,39325.0,39321.0,0.377203]
[1645889800955,0.0172,39325.0,39316.0,0.003]
[1645889801160,0.0172,39325.0,39317.0,0.377203]
[1645889802008,0.0172,39325.0,39318.0,0.23974513]
[1645889802210,0.0172,39325.0,39319.0,0.377203]
[1645889804012,0.0172,39325.0,39322.0,7.251e-05]
[1645889807657,0.0172,39325.0,39318.0,0.10379783]
[1645889807856,0.0172,39325.0,39314.0,0.01016]
[1645889808058,0.0172,39325.0,39318.0,0.377203]
[1645889808659,0.0172,39325.0,39317.0,0.001]
[1645889808860,0.0172,39325.0,39318.0,0.377203]
[1645889808861,0.19745871,39319.0,39318.0,0.377203]
[1645889809110,0.19745871,39319.0,39318.0,0.339703]
[1645889809506,0.19745871,39319.0,39315.0,0.37727]
[1645889810007,0.2318872,39325.0,39315.0,0.37727]
[1645889810211,0.0172,39325.0,39315.0,0.37727]
[1645889811110,0.22737114,39325.0,39318.0,0.21276898]
[1645889811309,0.22737114,39325.0,39319.0,0.37727]
[1645889812109,0.22737114,39325.0,39319.0,0.37927]
[1645889813455,0.22737114,39325.0,39319.0,0.37727]
[1645889814056,0.22737114,39325.0,39319.0,0.37927]
[1645889814266,0.22737114,39325.0,39319.0,0.37427]
[1645889815460,0.0172,39325.0,39319.0,0.37227]
[1645889816060,0.0172,39325.0,39319.0,0.67211423]
[1645889816260,0.0172,39325.0,39319.0,0.37427]
[1645889816706,0.0172,39325.0,39324.0,0.55593605]
[1645889817415,0.0172,39325.0,39324.0,0.63197605]
[1645889818007,0.0172,39325.0,39324.0,0.73397605]
[1645889818206,0.0172,39325.0,39324.0,0.78507605]
[1645889818407,0.0172,39325.0,39324.0,1.11060605]
[1645889818608,0.0172,39325.0,39324.0,0.68507605]
[1645889819207,0.0172,39325.0,39324.0,0.60903605]
[1645889819408,0.0172,39325.0,39324.0,0.60703605]
[1645889819808,0.0172,39325.0,39324.0,0.42837]
[1645889820461,0.0172,39325.0,39324.0,0.37727]
[1645889820657,0.20038114,39325.0,39324.0,0.37727]
[1645889821260,0.20038114,39325.0,39319.0,0.003]
[1645889821462,0.36337988,39323.0,39320.0,0.377221]
[1645889823462,0.57806708,39323.0,39320.0,0.377221]
[1645889824109,0.2146872,39322.0,39320.0,0.380221]
[1645889824506,0.2146872,39321.0,39320.0,0.380221]
[1645889825309,0.2146872,39321.0,39320.0,0.377221]
[1645889826513,0.36337988,39323.0,39320.0,0.377221]
[1645889826713,0.36337988,39323.0,39320.0,0.657131]
[1645889826912,0.36337988,39323.0,39322.0,0.377221]
[1645889827112,0.36337988,39323.0,39322.0,1.207121]
[1645889827313,0.36337988,39323.0,39322.0,0.528321]
[1645889827517,0.36337988,39323.0,39322.0,0.428321]
[1645889828953,0.36337988,39323.0,39322.0,0.377221]
[1645889829157,0.57806708,39323.0,39317.0,0.001]
[1645889829355,0.51480639,39322.0,39318.0,0.377221]
[1645889829554,0.36337988,39323.0,39318.0,0.377221]
[1645889829555,0.21480639,39321.0,39318.0,0.377221]
[1645889830955,0.57818627,39323.0,39318.0,0.377221]
[1645889831160,0.36337988,39323.0,39321.0,0.18542807]
[1645889831357,0.36337988,39323.0,39322.0,0.377221]
[1645889832112,0.36337988,39323.0,39322.0,0.379221]
[1645889833311,0.36337988,39323.0,39322.0,0.377221]
[1645889834112,0.36337988,39323.0,39322.0,0.379221]
[1645889835357,0.36331685,39323.0,39322.0,0.377221]
[1645889836157,0.36331685,39323.0,39322.0,0.379221]
[1645889836756,0.36331685,39323.0,39322.0,0.779221]
[1645889837359,0.36331685,39323.0,39322.0,0.777221]
[1645889837759,0.36331685,39323.0,39322.0,0.6813254]
[1645889838159,0.36331685,39323.0,39322.0,0.6833254]
[1645889838160,0.36287545,39323.0,39322.0,0.6833254]
[1645889839415,0.36287545,39323.0,39322.0,1.4621254]
[1645889839616,0.36287545,39323.0,39322.0,1.5132254]
[1645889839819,0.36287545,39323.0,39322.0,1.5387554]
[1645889840020,0.1218047,39323.0,39322.0,2.10010311]
[1645889840220,0.1218047,39323.0,39322.0,2.10162025]
[1645889840418,0.1218047,39323.0,39322.0,0.94728798]
[1645889840622,0.1218047,39323.0,39322.0,0.7344254]
[1645889841419,0.1218047,39323.0,39322.0,1.5132254]
[1645889841618,0.1218047,39323.0,39322.0,0.7324254]
[1645889842019,0.1218047,39323.0,39322.0,0.7609554]
[1645889842621,0.1218047,39323.0,39322.0,1.5397554]
[1645889843259,0.1218047,39323.0,39322.0,1.5367554]
[1645889843859,0.1218047,39323.0,39322.0,0.7579554]
[1645889844058,0.1218047,39323.0,39322.0,1.5367554]
[1645889845863,0.1218047,39323.0,39322.0,1.9867554]
[1645889846059,0.1218047,39323.0,39322.0,1.5367554]
[1645889846460,0.1218047,39323.0,39322.0,1.9867554]
[1645889846715,0.1218047,39323.0,39322.0,1.5367554]
[1645889850019,0.1218047,39323.0,39322.0,1.8867554]
[1645889850218,0.1218047,39323.0,39322.0,1.5367554]
[1645889850463,0.1218047,39323.0,39322.0,1.6867554]
[1645889850664,0.1218047,39323.0,39322.0,2.0367454]
[1645889850863,0.1218047,39323.0,39322.0,2.24960798]
[1645889851067,0.11174927,39323.0,39322.0,1.89960798]
[1645889851267,0.10851733,39323.0,39322.0,2.34960798]
[1645889852164,0.10851733,39323.0,39322.0,2.35260798]
[1645889852364,0.10851733,39323.0,39322.0,1.90260798]
[1645889852563,0.10851733,39323.0,39322.0,1.86916798]
[1645889852764,0.10851733,39323.0,39322.0,1.66507858]
[1645889852964,0.10851733,39323.0,39322.0,1.335666]
[1645889853364,0.10851733,39323.0,39322.0,1.632666]
[1645889853565,0.10851733,39323.0,39322.0,1.782666]
[1645889853869,0.10851733,39323.0,39322.0,1.632666]
[1645889854108,0.10851733,39323.0,39322.0,1.332666]
[1645889854309,0.10851733,39323.0,39322.0,1.54552858]
[1645889854710,0.10851733,39323.0,39322.0,1.79552858]
[1645889855109,0.10625341,39323.0,39322.0,1.79552858]
[1645889855311,0.10625341,39323.0,39322.0,1.582666]
[1645889859559,0.10625341,39323.0,39322.0,1.332666]
[1645889859757,0.10625341,39323.0,39322.0,1.207136]
[1645889860156,0.02032732,39323.0,39322.0,1.682666]
[1645889860658,0.02032732,39323.0,39322.0,1.94935064]
[1645889860858,0.02032732,39323.0,39322.0,1.682666]
[1645889861057,0.01009721,39323.0,39322.0,1.782666]
[1645889861357,0.01009721,39323.0,39322.0,2.04935064]
[1645889861809,0.01009721,39323.0,39322.0,1.782666]
[1645889862809,0.01009721,39323.0,39322.0,2.54935064]
[1645889863008,0.01009721,39323.0,39322.0,2.282666]
[1645889863810,0.01009721,39323.0,39322.0,2.54935064]
[1645889864309,0.00302121,39325.0,39324.0,1.156036]
[1645889864509,0.00302121,39325.0,39324.0,1.71986154]
[1645889864710,0.7421784,39326.0,39324.0,1.807136]
[1645889864909,0.7421784,39326.0,39325.0,1.456036]
[1645889865110,0.7421784,39326.0,39325.0,1.507136]
[1645889865352,0.7421784,39326.0,39325.0,1.607136]
[1645889866253,0.7421784,39326.0,39325.0,1.632666]
[1645889866454,0.7421784,39326.0,39325.0,1.635666]
[1645889866657,0.7421784,39326.0,39325.0,1.610136]
[1645889867654,0.7421784,39326.0,39325.0,1.635666]
[1645889867854,0.16915416,39326.0,39325.0,1.635666]
[1645889868054,0.16915416,39326.0,39325.0,1.610136]
[1645889868254,0.16915416,39326.0,39325.0,1.81986154]
[1645889869805,0.16915416,39326.0,39325.0,1.632666]
[1645889870010,0.16915416,39326.0,39325.0,1.607136]
[1645889871811,0.16915416,39326.0,39325.0,2.31983561]
[1645889872008,0.16915416,39326.0,39325.0,2.107136]
[1645889872608,0.16915416,39326.0,39325.0,2.110136]
[1645889873073,0.11633486,39326.0,39325.0,2.110136]
[1645889873274,1.68e-06,39329.0,39327.0,0.7788]
[1645889873578,0.21800639,39343.0,39327.0,0.7788]
[1645889873579,0.03353953,39349.0,39345.0,0.2]
[1645889873773,0.32304977,39351.0,39349.0,0.377236]
[1645889873774,0.212379,39351.0,39349.0,0.377236]
[1645889873973,0.00609094,39354.0,39351.0,1.577236]
[1645889874171,0.02573953,39358.0,39355.0,1.156036]
[1645889874172,0.15152085,39358.0,39355.0,1.156036]
[1645889874379,0.02363953,39364.0,39358.0,1.577236]
[1645889874682,0.14003,39373.0,39358.0,1.577236]
[1645889874683,0.08528,39377.0,39370.0,0.2]
[1645889874874,0.06978,39377.0,39371.0,0.677236]
[1645889875073,0.06978,39377.0,39374.0,0.35]
[1645889875074,0.06868,39377.0,39374.0,0.35]
[1645889875272,0.06868,39377.0,39376.0,0.6381]
[1645889875273,0.03223917,39377.0,39376.0,0.6381]
[1645889875474,0.31772506,39390.0,39380.0,1.0788]
[1645889875676,0.31772506,39390.0,39377.0,0.503875]
[1645889875677,0.3,39391.0,39383.0,0.6381]
[1645889875876,0.61772506,39391.0,39384.0,0.428006]
[1645889876072,0.37522923,39393.0,39384.0,1.206806]
[1645889876073,0.31772506,39393.0,39384.0,1.206806]
[1645889876271,0.0009419,39394.0,39384.0,0.478006]
[1645889876473,0.1,39391.0,39385.0,0.376906]
[1645889876715,0.1,39389.0,39386.0,0.427921]
[1645889876917,0.1,39391.0,39387.0,0.0511]
[1645889877113,0.0009419,39394.0,39387.0,0.0511]
[1645889877313,0.00037329,39389.0,39388.0,0.376821]
[1645889877514,0.00037329,39389.0,39388.0,0.427921]
[1645889877715,0.00037329,39389.0,39388.0,0.0511]
[1645889877716,0.10037329,39389.0,39388.0,0.0511]
[1645889877915,0.10037329,39389.0,39382.0,0.0511]
[1645889878116,0.1,39384.0,39382.0,0.0511]
[1645889878315,0.1,39384.0,39371.0,0.05]
[1645889878316,0.376821,39383.0,39371.0,0.05]
[1645889878517,0.1,39376.0,39368.0,0.078522]
[1645889878716,0.00037376,39387.0,39368.0,0.015]
[1645889878717,0.1,39373.0,39368.0,0.015]
[1645889878916,0.1,39369.0,39368.0,0.015]
[1645889879114,0.1,39369.0,39361.0,0.05]
[1645889879115,1.2,39368.0,39361.0,0.05]
[1645889879315,1.2,39368.0,39353.0,0.51798314]
[1645889879316,0.1,39362.0,39353.0,0.51798314]
[1645889879521,0.1,39361.0,39354.0,0.376821]
[1645889879722,0.1,39361.0,39355.0,0.3]
[1645889879918,0.00037388,39366.0,39356.0,0.376821]
[1645889880116,0.00037388,39366.0,39357.0,0.3]
[1645889880362,0.00037388,39366.0,39354.0,1.43209586]
[1645889880363,0.00037388,39366.0,39358.0,0.376821]
[1645889880561,0.1,39367.0,39355.0,0.50039015]
[1645889880562,0.1,39360.0,39356.0,0.003]
[1645889880764,0.3,39359.0,39356.0,0.003]
[1645889880965,0.1,39357.0,39356.0,0.003]
[1645889881161,0.1,39357.0,39356.0,0.379821]
[1645889881361,0.1,39359.0,39356.0,0.379821]
[1645889881566,0.1,39357.0,39356.0,0.379821]
[1645889881765,0.1,39357.0,39356.0,0.376821]
[1645889882964,0.10035587,39358.0,39356.0,0.376821]
[1645889883164,0.29615794,39361.0,39356.0,0.376821]
[1645889883366,0.08,39356.0,39355.0,0.376821]
[1645889884117,0.08,39356.0,39347.0,1.43210423]
[1645889884118,0.08,39356.0,39352.0,1.43213695]
[1645889884317,0.18,39353.0,39352.0,1.43213695]
[1645889884514,0.08,39353.0,39352.0,1.43213695]
[1645889885716,0.18,39353.0,39352.0,1.43213695]
[1645889886615,0.18,39353.0,39352.0,1.43513695]
[1645889886818,0.18,39353.0,39352.0,0.003]
[1645889887416,0.175,39353.0,39352.0,0.003]